fUSD/lending_fUSD_20250824
["ID","MTS","AMOUNT","RATE_DAILY","PERIOD"]
[381076800,1756005049160,-192.010214,0.00012,2]
[381076801,1756005049170,-192.010214,0.00012,2]
[381076802,1756005049179,-192.010214,0.00012,2]
[381076803,1756005049189,-192.010214,0.00012,2]
[381076804,1756005049198,-192.010214,0.00012,2]
[381076805,1756005049208,-192.010214,0.00012,2]
[381076806,1756005049218,-192.010214,0.00012,2]
[381076807,1756005049227,-192.010214,0.00012,2]
[381076808,1756005049237,-192.010214,0.00012,2]
[381076809,1756005049246,-192.010214,0.00012,2]
[381076810,1756005049257,-192.010214,0.00012,2]
[381076811,1756005049270,-151.618978,0.00012,2]
[381076812,1756005049279,-192.010214,0.00012,2]
[381076813,1756005049289,-192.010214,0.00012,2]
[381076814,1756005049299,-192.010214,0.00012,2]
[381076815,1756005049310,-192.010214,0.00012,2]
[381076816,1756005049319,-192.010214,0.00012,2]
[381076817,1756005049328,-192.010214,0.00012,2]
[381076818,1756005049339,-192.010214,0.00012,2]
[381076819,1756005049348,-151.0,0.00012,2]
[381076820,1756005049358,-192.010214,0.00012,2]
[381076821,1756005049367,-151.0,0.00012,2]
[381076822,1756005049376,-192.010216,0.00012,2]
[381076823,1756005049386,-151.378501,0.00012,2]
[381076824,1756005049395,-166.859821,0.00012,2]
[381076825,1756005049404,-166.859821,0.00012,2]
[381076826,1756005049414,-166.859821,0.00012,2]
[381076827,1756005049423,-166.859821,0.00012,2]
[381076828,1756005049433,-166.859821,0.00012,2]
[381076829,1756005049442,-166.859821,0.00012,2]
[381076830,1756005049452,-166.859821,0.00012,2]
[381076831,1756005049461,-166.859821,0.00012,2]
[381076832,1756005049471,-166.859821,0.00012,2]
[381076833,1756005049480,-166.859821,0.00012,2]
[381076834,1756005049490,-151.0,0.00012,2]
[381076835,1756005049499,-166.859821,0.00012,2]
[381076836,1756005049510,-151.0,0.00012,2]
[381076837,1756005049519,-166.859821,0.00012,2]
[381076838,1756005049528,-151.717085,0.00012,2]
[381076839,1756005049538,-166.859821,0.00012,2]
[381076840,1756005049547,-151.0,0.00012,2]
[381076841,1756005049557,-166.859821,0.00012,2]
[381076842,1756005049566,-151.0,0.00012,2]
[381076843,1756005049576,-166.859821,0.00012,2]
[381076844,1756005049586,-151.0,0.00012,2]
[381076845,1756005049596,-166.859821,0.00012,2]
[381076846,1756005049605,-151.553793,0.00012,2]
[381076847,1756005049615,-166.859821,0.00012,2]
[381076848,1756005049624,-166.859821,0.00012,2]
[381076849,1756005049634,-166.859821,0.00012,2]
[381076850,1756005049643,-166.859824,0.00012,2]
[381076851,1756005049652,-151.0,0.00012,2]
[381076852,1756005049662,-151.0,0.00012,2]
[381076853,1756005049671,-151.0,0.00012,2]
[381076854,1756005049680,-151.422256,0.00012,2]
[381076855,1756005049689,-151.0,0.00012,2]
[381076856,1756005049698,-151.0,0.00012,2]
[381076857,1756005049708,-151.0,0.00012,2]
[381076858,1756005049718,-242.68268,0.00012,2]
[381076859,1756005049727,-151.0,0.00012,2]
[381076860,1756005049736,-151.0,0.00012,2]
[381076861,1756005049746,-151.0,0.00012,2]
[381076862,1756005049755,-151.0,0.00012,2]
[381076863,1756005049765,-151.0,0.00012,2]
[381076864,1756005049774,-151.0,0.00012,2]
[381076865,1756005049783,-151.0,0.00012,2]
[381076866,1756005049793,-151.0,0.00012,2]
[381076867,1756005049802,-151.0,0.00012,2]
[381076868,1756005049812,-151.0,0.00012,2]
[381076869,1756005049821,-151.0,0.00012,2]
[381076870,1756005049831,-151.0,0.00012,2]
[381076871,1756005049841,-151.0,0.00012,2]
[381076872,1756005049851,-151.0,0.00012,2]
[381076873,1756005049860,-151.0,0.00012,2]
[381076874,1756005049870,-151.0,0.00012,2]
[381076875,1756005049880,-151.0,0.00012,2]
[381076876,1756005049890,-151.0,0.00012,2]
[381076877,1756005049899,-151.0,0.00012,2]
[381076878,1756005049909,-151.0,0.00012,2]
[381076879,1756005049919,-151.0,0.00012,2]
[381076880,1756005049928,-151.0,0.00012,2]
[381076881,1756005049938,-151.0,0.00012,2]
[381076882,1756005049948,-251.370482,0.00012,2]
[381076883,1756005049957,-151.0,0.00012,2]
[381076884,1756005049967,-284.10832,0.00012,2]
[381076885,1756005049977,-151.0,0.00012,2]
[381076886,1756005049986,-152.592227,0.00012,2]
[381076887,1756005049997,-151.487809,0.00012,2]
[381076888,1756005050007,-151.0,0.00012,2]
[381076889,1756005050017,-151.0,0.00012,2]
[381076890,1756005050027,-153.576775,0.00012,2]
[381076891,1756005050036,-152.362335,0.00012,2]
[381076892,1756005050046,-151.0,0.00012,2]
[381076893,1756005050056,-151.0,0.00012,2]
[381076894,1756005050066,-151.0,0.00012,2]
[381076895,1756005050075,-151.0,0.00012,2]
[381076896,1756005050086,-613.21,0.00012,2]
[381076897,1756005050095,-151.0,0.00012,2]
[381076898,1756005050397,-151.0,0.00012,2]
[381076899,1756005050407,-151.0,0.00012,2]
[381076900,1756005050417,-151.0,0.00012,2]
[381076901,1756005050426,-151.0,0.00012,2]
[381076902,1756005050436,-151.0,0.00012,2]
[381076903,1756005050446,-154.53268,0.00012,2]
[381076904,1756005050455,-315.485407,0.00012,2]
[381076905,1756005050465,-315.485407,0.00012,2]
[381076906,1756005050474,-151.0,0.00012,2]
[381076907,1756005050484,-315.485407,0.00012,2]
[381076908,1756005050494,-151.0,0.00012,2]
[381076909,1756005050503,-315.485407,0.00012,2]
[381076910,1756005050512,-151.0,0.00012,2]
[381076911,1756005050522,-315.485407,0.00012,2]
[381076912,1756005050531,-151.0,0.00012,2]
[381076913,1756005050541,-315.485407,0.00012,2]
[381076914,1756005050550,-151.0,0.00012,2]
[381076915,1756005050560,-315.485407,0.00012,2]
[381076916,1756005050569,-315.485407,0.00012,2]
[381076917,1756005050578,-151.0,0.00012,2]
[381076918,1756005050588,-266.985706,0.00012,2]
[381076919,1756005050597,-315.485407,0.00012,2]
[381076920,1756005050606,-315.485407,0.00012,2]
[381076921,1756005050616,-315.485407,0.00012,2]
[381076922,1756005050625,-315.485407,0.00012,2]
[381076923,1756005050635,-315.485407,0.00012,2]
[381076924,1756005050644,-315.485407,0.00012,2]
[381076925,1756005050654,-315.485407,0.00012,2]
[381076926,1756005050663,-315.485407,0.00012,2]
[381076927,1756005050673,-315.485407,0.00012,2]
[381076928,1756005050682,-315.485407,0.00012,2]
[381076929,1756005050692,-315.485407,0.00012,2]
[381076930,1756005050701,-315.4854,0.00012,2]
[381076931,1756005050711,-151.73734,0.00012,2]
[381076932,1756005050720,-151.0,0.00012,2]
[381076933,1756005050730,-151.0,0.00012,2]
[381076934,1756005050739,-151.0,0.00012,2]
[381076935,1756005050748,-151.0,0.00012,2]
[381076936,1756005050758,-151.0,0.00012,2]
[381076937,1756005050768,-151.0,0.00012,2]
[381076938,1756005050778,-151.0,0.00012,2]
[381076939,1756005050789,-157.550088,0.00012,2]
[381076940,1756005050798,-151.0,0.00012,2]
[381076941,1756005050807,-151.0,0.00012,2]
[381076942,1756005050817,-151.0,0.00012,2]
[381076943,1756005050826,-151.0,0.00012,2]
[381076944,1756005050835,-151.0,0.00012,2]
[381076945,1756005050845,-265.7856,0.00012,2]
[381076946,1756005050854,-151.0,0.00012,2]
[381076947,1756005050863,-151.0,0.00012,2]
[381076948,1756005050874,-151.0,0.00012,2]
[381076949,1756005050884,-151.0,0.00012,2]
[381076950,1756005050894,-151.0,0.00012,2]
[381076951,1756005050903,-151.0,0.00012,2]
[381076952,1756005050914,-151.0,0.00012,2]
[381076953,1756005050924,-214.576159,0.00012,2]
[381076954,1756005050934,-151.0,0.00012,2]
[381076955,1756005050944,-151.0,0.00012,2]
[381076956,1756005050954,-151.0,0.00012,2]
[381076957,1756005050964,-151.0,0.00012,2]
[381076958,1756005050973,-151.0,0.00012,2]
[381076959,1756005050983,-151.0,0.00012,2]
[381076960,1756005050993,-151.0,0.00012,2]
[381076961,1756005051003,-153.839787,0.00012,2]
[381076962,1756005051012,-152.449407,0.00012,2]
[381076963,1756005051022,-151.0,0.00012,2]
[381076964,1756005051031,-151.0,0.00012,2]
[381076965,1756005051040,-151.0,0.00012,2]
[381076966,1756005051050,-222.075044,0.00012,2]
[381076967,1756005051059,-151.0,0.00012,2]
[381076968,1756005051069,-151.0,0.00012,2]
[381076969,1756005051078,-151.0,0.00012,2]
[381076970,1756005051089,-151.0,0.00012,2]
[381076971,1756005051098,-151.0,0.00012,2]
[381076972,1756005051108,-151.0,0.00012,2]
[381076973,1756005051117,-151.0,0.00012,2]
[381076974,1756005051127,-152.777993,0.00012,2]
[381076975,1756005051136,-151.0,0.00012,2]
[381076976,1756005051146,-165.720949,0.00012,2]
[381076977,1756005051155,-151.0,0.00012,2]
[381076978,1756005051164,-259.265407,0.00012,2]
[381076979,1756005051174,-151.293497,0.00012,2]
[381076980,1756005051183,-151.0,0.00012,2]
[381076981,1756005051192,-151.0,0.00012,2]
[381076982,1756005051202,-151.0,0.00012,2]
[381076983,1756005051211,-151.0,0.00012,2]
[381076984,1756005051221,-151.0,0.00012,2]
[381076985,1756005051231,-151.0,0.00012,2]
[381076986,1756005051240,-151.0,0.00012,2]
[381076987,1756005051249,-151.0,0.00012,2]
[381076988,1756005051258,-151.0,0.00012,2]
[381076989,1756005051272,-151.0,0.00012,2]
[381076990,1756005051281,-151.0,0.00012,2]
[381076991,1756005051290,-152.329101,0.00012,2]
[381076992,1756005051299,-151.0,0.00012,2]
[381076993,1756005051309,-151.0,0.00012,2]
[381076994,1756005051318,-151.0,0.00012,2]
[381076995,1756005051328,-151.0,0.00012,2]
[381076996,1756005051337,-151.0,0.00012,2]
[381076997,1756005051348,-151.0,0.00012,2]
[381076998,1756005051358,-192.334776,0.00012,2]
[381076999,1756005051367,-151.0,0.00012,2]
[381077000,1756005051376,-151.0,0.00012,2]
[381077001,1756005051386,-151.0,0.00012,2]
[381077002,1756005051395,-151.0,0.00012,2]
[381077003,1756005051404,-151.0,0.00012,2]
[381077004,1756005051414,-151.0,0.00012,2]
[381077005,1756005051423,-151.0,0.00012,2]
[381077006,1756005051433,-151.0,0.00012,2]
[381077007,1756005051443,-151.0,0.00012,2]
[381077008,1756005051452,-220.572453,0.00012,2]
[381077009,1756005051462,-151.0,0.00012,2]
[381077010,1756005051473,-151.0,0.00012,2]
[381077011,1756005051482,-152.982288,0.00012,2]
[381077012,1756005051491,-151.0,0.00012,2]
[381077013,1756005051502,-151.0,0.00012,2]
[381077014,1756005051513,-151.0,0.00012,2]
[381077015,1756005051524,-151.0,0.00012,2]
[381077016,1756005051535,-151.0,0.00012,2]
[381077017,1756005051544,-151.0,0.00012,2]
[381077018,1756005051554,-151.0,0.00012,2]
[381077019,1756005051573,-153.735127,0.00012,2]
[381077020,1756005051585,-151.0,0.00012,2]
[381077021,1756005051595,-151.0,0.00012,2]
[381077022,1756005051605,-151.0,0.00012,2]
[381077023,1756005051615,-304.341896,0.00012,2]
[381077024,1756005051625,-151.0,0.00012,2]
[381077025,1756005051635,-304.341896,0.00012,2]
[381077026,1756005051644,-246.882433,0.00012,2]
[381077027,1756005051655,-151.0,0.00012,2]
[381077028,1756005051664,-304.341896,0.00012,2]
[381077029,1756005051676,-151.0,0.00012,2]
[381077030,1756005051686,-304.341896,0.00012,2]
[381077031,1756005051695,-152.189198,0.00012,2]
[381077032,1756005051705,-304.341896,0.00012,2]
[381077033,1756005051715,-304.341896,0.00012,2]
[381077034,1756005051727,-304.341896,0.00012,2]
[381077035,1756005051736,-304.341896,0.00012,2]
[381077036,1756005051746,-304.341896,0.00012,2]
[381077037,1756005051757,-304.341896,0.00012,2]
[381077038,1756005051766,-304.341896,0.00012,2]
[381077039,1756005051775,-304.341896,0.00012,2]
[381077040,1756005051784,-304.341896,0.00012,2]
[381077041,1756005051794,-304.341896,0.00012,2]
[381077042,1756005051804,-304.341896,0.00012,2]
[381077043,1756005051813,-304.341896,0.00012,2]
[381077044,1756005051822,-304.341896,0.00012,2]
[381077045,1756005051832,-304.341896,0.00012,2]
[381077046,1756005051841,-304.341896,0.00012,2]
[381077047,1756005051851,-304.341894,0.00012,2]
[381077048,1756005051860,-151.0,0.00012,2]
[381077049,1756005051870,-151.0,0.00012,2]
[381077050,1756005051879,-151.0,0.00012,2]
[381077051,1756005051889,-295.547216,0.00012,2]
[381077052,1756005051899,-698.683688,0.00012,2]
[381077053,1756005051909,-698.683688,0.00012,2]
[381077054,1756005051919,-698.683688,0.00012,2]
[381077055,1756005051930,-698.683688,0.00012,2]
[381077056,1756005051940,-698.683688,0.00012,2]
[381077057,1756005051950,-698.683688,0.00012,2]
[381077058,1756005051959,-698.683688,0.00012,2]
[381077059,1756005051969,-968.529654,0.00012,2]
[381077060,1756005051979,-698.683688,0.00012,2]
[381077061,1756005051989,-968.529654,0.00012,2]
[381077062,1756005051999,-151.0,0.00012,2]
[381077063,1756005052009,-322.16418418,0.00012,2]
[381077117,1756005877168,215.0,0.000103,2]
[381077126,1756006000306,200.0,0.000287,120]
[381077127,1756006035386,205.0,9.8e-05,2]
[381077128,1756006039559,255.17989577,0.000101,2]
[381077266,1756006237790,-2213.29253334,0.0001098,2]
[381077267,1756006237829,-5611.81898037,0.0001098,2]
[381077268,1756006237839,-1200.0,0.00011127,2]
[381077269,1756006237852,-250.0,0.00011128,2]
[381077270,1756006237861,-157.9,0.00011334,2]
[381077271,1756006237870,-1000.0,0.00011447,2]
[381077273,1756006237879,-210.0,0.0001148,2]
[381077275,1756006237888,-300.0,0.00011639,2]
[381077277,1756006237898,-2500.0,0.0001164,2]
[381077279,1756006237907,-1771.90361963,0.000118,2]
[381077284,1756006237942,-728.09638037,0.000118,2]
[381077286,1756006237951,-296.5514,0.0001188,2]
[381077288,1756006237960,-500.0,0.00011899,2]
[381077290,1756006237970,-150.99,0.00011899,2]
[381077292,1756006237978,-302.86,0.00011899,2]
[381077294,1756006237988,-5760.05,0.00011899,2]
[381077296,1756006237998,-150.0,0.00011899,2]
[381077298,1756006238008,-183.04464389,0.00011899,2]
[381077455,1756006239581,-180.59458866,0.00011899,2]
[381077456,1756006239590,-280.9514,0.000119,2]
[381077457,1756006239600,-688.865,0.000119,2]
[381077458,1756006239609,-450.23901134,0.000119,2]
[381077459,1756006239621,-120.84936736,0.000119,2]
[381077460,1756006239630,-181.07260423,0.000119,2]
[381077461,1756006239640,-3833.29699898,0.000119,2]
[381077465,1756006239693,-963.19752,0.000119,2]
[381077507,1756006242743,-632.27605515,0.000119,2]
[381077508,1756006242754,-8536.21682164,0.000119,2]
[381077509,1756006242763,-150.99,0.000119,2]
[381077510,1756006242772,-29999.99,0.000119,2]
[381077511,1756006242782,-632.93346378,0.00011982,2]
[381077512,1756006242791,-277.35679052,0.00011983,2]
[381077513,1756006242800,-521.0,0.00011987,2]
[381077514,1756006242809,-567.617,0.0001199,2]
[381077515,1756006242818,-600.799,0.0001199,2]
[381077516,1756006242827,-1298.0,0.0001199,2]
[381077517,1756006242837,-1657.0,0.0001199,2]
[381077518,1756006242848,-896.558,0.0001199,2]
[381077519,1756006242857,-2925.875,0.0001199,2]
[381077520,1756006242866,-1173.0,0.0001199,2]
[381077521,1756006242876,-2034.17,0.0001199,2]
[381077522,1756006242885,-4154.0,0.0001199,2]
[381077523,1756006242895,-6094.0,0.0001199,2]
[381077524,1756006242904,-3382.776,0.0001199,2]
[381077525,1756006242913,-925.0,0.0001199,2]
[381077526,1756006242923,-1349.36,0.00011991,2]
[381077527,1756006242934,-171.3110791,0.00011992,2]
[381077528,1756006242943,-646.1831585,0.00011992,2]
[381077529,1756006242952,-451.01037866,0.00011993,2]
[381077530,1756006242961,-655.19365535,0.00011993,2]
[381077531,1756006242970,-300.0,0.00011993,2]
[381077532,1756006242979,-300.0,0.00011993,2]
[381077533,1756006242988,-300.0,0.00011993,2]
[381077534,1756006242998,-300.0,0.00011993,2]
[381077536,1756006243007,-300.0,0.00011993,2]
[381077537,1756006243016,-300.0,0.00011993,2]
[381077538,1756006243025,-151.0,0.00011993,2]
[381077539,1756006243034,-300.0,0.00011993,2]
[381077540,1756006243043,-151.0,0.00011993,2]
[381077541,1756006243052,-300.0,0.00011993,2]
[381077542,1756006243062,-1000.0,0.00011993,2]
[381077543,1756006243072,-300.0,0.00011993,2]
[381077544,1756006243081,-300.0,0.00011993,2]
[381077545,1756006243090,-300.0,0.00011993,2]
[381077546,1756006243100,-1000.0,0.00011993,2]
[381077547,1756006243109,-300.0,0.00011993,2]
[381077548,1756006243118,-300.0,0.00011993,2]
[381077549,1756006243127,-1000.0,0.00011993,2]
[381077551,1756006243137,-300.0,0.00011993,2]
[381077552,1756006243146,-183.31095702,0.00011993,2]
[381077553,1756006243155,-480.5001784,0.00011993,2]
[381077554,1756006243164,-200.0,0.00011993,2]
[381077555,1756006243173,-500.0,0.00011993,2]
[381077556,1756006243184,-1000.0,0.00011993,2]
[381077558,1756006243193,-1000.0,0.00011993,2]
[381077560,1756006243202,-231.1657428,0.00011993,2]
[381077561,1756006243211,-300.0,0.00011993,2]
[381077562,1756006243221,-300.0,0.00011993,2]
[381077563,1756006243230,-300.0,0.00011993,2]
[381077564,1756006243240,-300.0,0.00011993,2]
[381077565,1756006243249,-1062.5498294,0.00011993,2]
[381077566,1756006243258,-300.0,0.00011993,2]
[381077567,1756006243267,-400.0,0.00011993,2]
[381077568,1756006243276,-300.0,0.00011993,2]
[381077569,1756006243286,-300.0,0.00011993,2]
[381077570,1756006243295,-300.0,0.00011993,2]
[381077571,1756006243305,-300.0,0.00011993,2]
[381077572,1756006243315,-300.0,0.00011993,2]
[381077573,1756006243324,-300.0,0.00011993,2]
[381077574,1756006243333,-300.0,0.00011993,2]
[381077575,1756006243342,-300.0,0.00011993,2]
[381077576,1756006243351,-500.0,0.00011993,2]
[381077577,1756006243360,-500.0,0.00011993,2]
[381077578,1756006243369,-402.63294483,0.00011993,2]
[381077579,1756006243381,-97.36705517,0.00011993,2]
[381077580,1756006243390,-500.0,0.00011993,2]
[381077581,1756006243400,-233.00896583,0.00011993,2]
[381077582,1756006243446,-266.99103417,0.00011993,2]
[381077583,1756006243455,-500.0,0.00011993,2]
[381077584,1756006243464,-500.0,0.00011993,2]
[381077585,1756006243473,-500.0,0.00011993,2]
[381077586,1756006243482,-206.56589052,0.00011993,2]
[381077587,1756006243492,-293.43410948,0.00011993,2]
[381077588,1756006243501,-500.0,0.00011993,2]
[381077589,1756006243510,-500.0,0.00011993,2]
[381077590,1756006243519,-198.19089052,0.00011999,2]
[381077591,1756006243529,-801.80910948,0.00011999,2]
[381077592,1756006243538,-296.4585,0.00012,2]
[381077593,1756006243547,-200.0,0.00012,2]
[381077594,1756006243556,-473.89904876,0.00012,2]
[381077595,1756006243581,-349.73911512,0.00012,2]
[381077598,1756006245598,-1149.7470142,0.00012,2]
[381077599,1756006245659,-855.0960104,0.00012,2]
[381077600,1756006245713,-3281.0519054,0.00012,2]
[381077601,1756006245726,-12215.96915,0.00012,2]
[381077602,1756006245738,-1633.63011005,0.00012,2]
[381077603,1756006245769,-751.58688,0.00012,2]
[381077604,1756006245825,-14853.88796027,0.00012,2]
[381077605,1756006245834,-200.0,0.00012,2]
[381077606,1756006245846,-475.19,0.00012,2]
[381077607,1756006245856,-150.0,0.00012,2]
[381077608,1756006245865,-1256.84311397,0.00012,2]
[381077609,1756006245875,-74546.97290485,0.00012,2]
[381077611,1756006245884,-7397.0700076,0.00012,2]
[381077612,1756006245895,-150.0,0.00012,2]
[381077613,1756006245904,-150.0,0.00012,2]
[381077614,1756006245916,-150.0,0.00012,2]
[381077615,1756006245927,-500.0,0.00012,2]
[381077616,1756006245936,-150.0,0.00012,2]
[381077618,1756006245945,-18.44981342,0.00012,2]
[381077619,1756006245987,-131.55018658,0.00012,2]
[381077620,1756006245996,-150.0,0.00012,2]
[381077621,1756006246006,-500.0,0.00012,2]
[381077622,1756006246015,-151.0,0.00012,2]
[381077623,1756006246024,-3841.68884631,0.00012,2]
[381077655,1756006939619,206.0,0.000102,2]
[381077659,1756007077758,5000.0,0.0002876,120]
[381077671,1756007431864,-1523.0,0.00010767,2]
[381077672,1756007431873,-310.0,0.00010913,2]
[381077673,1756007431882,-360.49549408,0.00011059,2]
[381077674,1756007431920,-1684.45909946,0.00011059,2]
[381077675,1756007431929,-250.36794204,0.00011159,2]
[381077676,1756007431938,-175.32,0.00011379,2]
[381077677,1756007431948,-202.0,0.0001138,2]
[381077678,1756007431957,-250.0,0.00011398,2]
[381077679,1756007431967,-1000.0,0.00011422,2]
[381077680,1756007431976,-2000.0,0.00011844,3]
[381077681,1756007431985,-310.0,0.00011844,2]
[381077682,1756007431995,-250.0,0.00011844,2]
[381077683,1756007432004,-277.35679052,0.00011983,2]
[381077684,1756007432015,-150.0,0.00011989,2]
[381077685,1756007432023,-300.0,0.00011989,2]
[381077686,1756007432032,-300.0,0.00011989,2]
[381077687,1756007432041,-1200.0,0.00011989,2]
[381077688,1756007432051,-1300.494,0.0001199,2]
[381077689,1756007432063,-3373.0,0.0001199,2]
[381077690,1756007432074,-925.0,0.0001199,2]
[381077691,1756007432085,-2031.0,0.0001199,2]
[381077692,1756007432094,-566.0,0.0001199,2]
[381077693,1756007432103,-1657.0,0.0001199,2]
[381077694,1756007432113,-599.0,0.0001199,2]
[381077695,1756007432122,-1298.0,0.0001199,2]
[381077696,1756007432131,-986.539,0.0001199,2]
[381077697,1756007432140,-4154.0,0.0001199,2]
[381077698,1756007432149,-718.0,0.0001199,2]
[381077699,1756007432158,-856.5553955,0.00011991,2]
[381077700,1756007432167,-200.0,0.00011993,2]
[381077701,1756007432176,-500.0,0.00011993,2]
[381077702,1756007432185,-300.0,0.00011993,2]
[381077703,1756007432194,-215.95515413,0.00011993,2]
[381077704,1756007432203,-500.0,0.00011993,2]
[381077705,1756007432212,-500.0,0.00011993,2]
[381077706,1756007432221,-500.0,0.00011993,2]
[381077707,1756007432230,-1363.47,0.00011999,2]
[381077708,1756007432239,-1079.488,0.00011999,2]
[381077709,1756007432248,-254.54746279,0.00011999,2]
[381077710,1756007432257,-68595.38979705,0.00012,2]
[381077711,1756007432266,-203.30219879,0.00012,2]
[381077712,1756007432277,-369.751803,0.00012,2]
[381077715,1756007432286,-200.0,0.00012,2]
[381077718,1756007432295,-200.0,0.00012,2]
[381077720,1756007432304,-525.0,0.00012,2]
[381077722,1756007432317,-7625.157246,0.00012,2]
[381077724,1756007432326,-513.97954083,0.00012,2]
[381077726,1756007432334,-512.89809753,0.00012,2]
[381077728,1756007432344,-247.12616,0.00012,2]
[381077730,1756007432352,-7621.89967551,0.00012016,2]
[381077732,1756007432363,-279.16104259,0.00012047,2]
[381077735,1756007432372,-500.0,0.00012048,2]
[381077737,1756007432381,-5714.24243982,0.00012055,2]
[381077739,1756007432410,-1890.44816829,0.00012055,2]
[381077740,1756007432420,-611.52910207,0.00012055,2]
[381077741,1756007432432,-500.81064924,0.00012055,2]
[381077742,1756007437969,-5785.41299669,0.00012055,2]
[381077743,1756007438180,-5837.06664389,0.00012055,2]
[381077744,1756007438190,-150.0,0.00012082,2]
[381077745,1756007438199,-150.0,0.00012082,2]
[381077746,1756007438208,-200.0,0.00012082,2]
[381077747,1756007438218,-154.32208673,0.00012082,2]
[381077748,1756007438227,-500.0,0.00012082,2]
[381077749,1756007438236,-150.0,0.00012082,2]
[381077750,1756007438245,-1205.0,0.00012082,2]
[381077751,1756007438255,-553.0,0.00012082,2]
[381077752,1756007438264,-500.0,0.00012082,2]
[381077753,1756007438273,-201.54144787,0.00012082,2]
[381077754,1756007438283,-150.0,0.00012082,2]
[381077756,1756007438292,-150.0,0.00012082,2]
[381077758,1756007438301,-150.0,0.00012082,2]
[381077760,1756007438311,-150.0,0.00012082,2]
[381077762,1756007438327,-202.31975554,0.00012082,2]
[381077764,1756007438336,-500.0,0.00012082,2]
[381077766,1756007438346,-500.0,0.00012082,2]
[381077768,1756007438355,-469.13,0.000121,2]
[381077770,1756007438366,-821.17,0.000121,2]
[381077772,1756007438376,-151.16,0.000121,2]
[381077774,1756007438385,-469.13,0.000121,2]
[381077776,1756007438394,-173.7,0.000121,2]
[381077778,1756007438404,-443.13,0.000121,2]
[381077780,1756007438413,-1185.08,0.000121,2]
[381077782,1756007438422,-150.0,0.000121,2]
[381077784,1756007438432,-539.5,0.000121,2]
[381077786,1756007438442,-173.7,0.000121,2]
[381077788,1756007438451,-150.0,0.000121,2]
[381077790,1756007438460,-150.0,0.000121,2]
[381077792,1756007438470,-408.48,0.000121,2]
[381077794,1756007438479,-150.0,0.000121,2]
[381077796,1756007438488,-1078.83,0.000121,2]
[381077798,1756007438498,-150.0,0.000121,2]
[381077800,1756007438508,-173.7,0.000121,2]
[381077802,1756007438518,-408.48,0.000121,2]
[381077804,1756007438528,-1185.08,0.000121,2]
[381077806,1756007438541,-173.7,0.000121,2]